[Event "Israel Championship 2021"]
[Site "Haifa"]
[Date "2021.03.14"]
[Round "8.16"]
[White "Parnes, Nadav"]
[Black "Stolyarsky, Yegor"]
[Result "1-0"]
[ECO "A24"]
[WhiteElo "2273"]
[BlackElo "2063"]
[Annotator "ChessBase"]
[PlyCount "69"]
[EventDate "2021.01.10"]
[EventType "swiss"]
[EventCountry "ISR"]
[SourceTitle "playchess.com"]
[Source "ChessBase"]
[SourceQuality "1"]
[TimeControl "40/5400+30:3600+30"]

1. g3 {[%emt 0:00:00]} Nf6 {[%emt 0:00:00]} 2. Bg2 {[%emt 0:00:00]} g6 {[%emt 0:00:26]} 3. Nf3 {[%emt 0:00:00]} Bg7 {[%emt 0:00:09]} 4. O-O {[%emt 0:00:00]} O-O {[%emt 0:00:17]} 5. c4 {[%emt 0:00:06]} d6 {[%emt 0:01:03]} 6. Nc3 {[%emt 0:00:05]} c6 {[%emt 0:00:16]} 7. Rb1 {[%emt 0:00:38]} a5 {[%emt 0:00:56]} 8. a3 {[%emt 0:00:19]} e5 {[%emt 0:00:59]} 9. d3 {[%emt 0:00:49]} Na6 {[%emt 0:02:35]} 10. b4 {[%emt 0:04:53]} Nc7 {[%emt 0:00:21]} 11. b5 {[%emt 0:10:07]} Ne6 {[%emt 0:00:44]} 12. bxc6 {[%emt 0:15:51]} bxc6 {[%emt 0:00:20]} 13. Qc2 {[%emt 0:10:35]} Qc7 {[%emt 0:01:52]} 14. Be3 {[%emt 0:06:56]} d5 {[%emt 0:03:04]} 15. Bb6 {[%emt 0:03:38]} Qd6 {[%emt 0:00:28]} 16. Na4 {[%emt 0:08:35]} Nd7 {[%emt 0:04:11]} 17. Be3 {[%emt 0:06:53]} f5 {[%emt 0:03:09]} 18. Ng5 {[%emt 0:01:26]} f4 {[%emt 0:02:47]} 19. Nxe6 {[%emt 0:00:36]} Qxe6 {[%emt 0:00:19]} 20. cxd5 {[%emt 0:01:01]} cxd5 {[%emt 0:00:54]} 21. Qa2 {[%emt 0:01:01]} Nf6 {[%emt 0:03:12]} 22. gxf4 {[%emt 0:08:19]} e4 {[%emt 0:06:32]} 23. dxe4 {[%emt 0:02:13]} dxe4 {[%emt 0:01:00]} 24. Qd2 {[%emt 0:03:58]} Qg4 {[%emt 0:03:18]} 25. Nb6 {[%emt 0:05:47]} Rb8 {[%emt 0:03:19]} 26. Nd5 {[%emt 0:04:10]} Ba6 {[%emt 0:06:41]} 27. Rxb8 {[%emt 0:00:57]} Rxb8 {[%emt 0:00:16]} 28. Nxf6+ {[%emt 0:00:26]} Bxf6 {[%emt 0:00:07]} 29. Qd6 {[%emt 0:02:11]} Bxe2 {[%emt 0:01:46]} 30. Qxb8+ {[%emt 0:00:10]} Kg7 {[%emt 0:01:27]} 31. h3 {[%emt 0:00:37]} Qd7 {[%emt 0:01:40]} 32. Rc1 {[%emt 0:01:00]} Kh6 {[%emt 0:00:45]} 33. Qf8+ {[%emt 0:01:23]} Bg7 {[%emt 0:00:06]} 34. Qc5 {[%emt 0:00:10]} Bf6 {[%emt 0:00:17]} 35. Qc6 {[%emt 0:00:25]} 1-0